fUSD/lending_fUSD_20250313
["ID","MTS","AMOUNT","RATE_DAILY","PERIOD"]
[356047627,1741845057223,-151.0,0.00028806,7]
[356047628,1741845057232,-50000.0,0.00028811,30]
[356047629,1741845057241,-50000.0,0.00028811,31]
[356047630,1741845057250,-50000.0,0.00028811,32]
[356047631,1741845057260,-50000.0,0.00028811,33]
[356047632,1741845057268,-50000.0,0.00028811,34]
[356047633,1741845057278,-377.38,0.00028811,2]
[356047634,1741845057288,-387.73333095,0.00028812,15]
[356047635,1741845057297,-154.09,0.00028812,2]
[356047636,1741845057306,-14976.67740679,0.00028812,30]
[356047637,1741845057754,-666.0,0.00028812,30]
[356047638,1741845060271,-472.65644773,0.000248,7]
[356047639,1741845060287,-7.64957427,0.000248,7]
[356047640,1741845060300,-480.306022,0.000248,7]
[356047641,1741845060314,-118.387956,0.000249,7]
[356047642,1741845060634,-361.918066,0.000249,7]
[356047643,1741845060644,-480.306022,0.0002736,7]
[356047644,1741845060653,-480.306022,0.00028,7]
[356047645,1741845060662,-480.306012,0.000287,7]
[356047646,1741845060672,-11786.963878,0.00028812,30]
[356047647,1741845060683,-9632.79,0.00028812,30]
[356047648,1741845061696,-1068.40519484,0.00011344,2]
[356047649,1741845061709,-45.59480516,0.00011344,2]
[356047650,1741845061718,-5262.39174278,0.00028812,30]
[356047651,1741845061742,-682.67861821,0.00028812,30]
[356047652,1741845061753,-4997.7066997,0.00028812,30]
[356047653,1741845061764,-2330.33954819,0.00028812,30]
[356047659,1741845170380,-156.39,9.8e-05,2]
[356047673,1741845610877,1713.0,8.9e-05,2]
[356047683,1741846232029,-426.36644233,9.8e-05,2]
[356047684,1741846232138,-952.32999,9.8e-05,2]
[356047685,1741846232150,-255.97559429,9.8e-05,2]
[356047686,1741846232198,-7378.63030598,9.8e-05,2]
[356047687,1741846232213,-626.59296356,9.8e-05,2]
[356047688,1741846232225,-701.115,9.8e-05,2]
[356047689,1741846232236,-1527.45052351,9.8e-05,2]
[356047690,1741846232247,-627.58285509,9.8e-05,2]
[356047691,1741846237864,-9728.13633588,9.8e-05,2]
[356047692,1741846237924,-33194.24571153,9.8e-05,2]
[356047693,1741846237950,-1638.65078962,9.8e-05,2]
[356047694,1741846237961,-2292.245,9.8e-05,2]
[356047695,1741846237999,-444.65525381,9.8e-05,2]
[356047696,1741846238060,-500.0,9.8e-05,2]
[356047697,1741846238072,-954.24825494,9.8e-05,2]
[356047699,1741846239949,-35990.29172697,9.8e-05,2]
[356047700,1741846239961,-974.55526154,9.8e-05,2]
[356047701,1741846240241,-1776.80682186,9.8e-05,2]
[356047702,1741846240253,-2790.0,9.8e-05,2]
[356047703,1741846240303,-254.652736,9.8e-05,2]
[356047704,1741846240360,-11959.10963309,9.8e-05,2]
[356047705,1741846240370,-1971.1557,9.8e-05,2]
[356047706,1741846240379,-2878.4599,9.8e-05,2]
[356047707,1741846240389,-150.0,9.849e-05,2]
[356047708,1741846240398,-150.0,9.894e-05,2]
[356047709,1741846240408,-1085.06235263,9.898e-05,3]
[356047710,1741846240417,-201.6688,9.899e-05,2]
[356047711,1741846240427,-759.0591,9.9e-05,2]
[356047712,1741846240436,-468.7294,9.9e-05,2]
[356047714,1741846240446,-11944.7968,9.9e-05,2]
[356047715,1741846240455,-582.08739903,9.973e-05,2]
[356047716,1741846240465,-500.0,9.973e-05,2]
[356047717,1741846240475,-1085.06235264,9.998e-05,3]
[356047718,1741846240484,-200.0136096,0.0001,2]
[356047719,1741846240495,-150.0,0.0001078,2]
[356047720,1741846240505,-151.0,0.00011771,2]
[356047721,1741846240514,-1114.0,0.00011771,2]
[356047722,1741846240524,-150.0,0.0001209,2]
[356047723,1741846240789,-161.183,0.0001209,2]
[356047724,1741846240803,-171.0,0.0001209,2]
[356047725,1741846240812,-200.0136096,0.00013093,2]
[356047726,1741846240822,-3851.94,0.00013235,2]
[356047727,1741846240831,-3851.94,0.00013235,2]
[356047728,1741846240843,-3851.94,0.00013235,2]
[356047729,1741846240853,-3851.94,0.00013235,2]
[356047730,1741846240864,-3851.94,0.00013235,2]
[356047731,1741846240874,-3851.94,0.00013235,2]
[356047732,1741846240884,-3851.94,0.00013235,2]
[356047733,1741846240894,-3851.94,0.00013235,2]
[356047734,1741846240903,-3851.94,0.00013235,2]
[356047735,1741846240912,-3851.94,0.00013235,2]
[356047736,1741846240922,-3851.94,0.00013235,2]
[356047737,1741846240931,-3851.94,0.00013235,2]
[356047738,1741846240940,-3851.94,0.00013235,2]
[356047739,1741846240950,-3851.94,0.00013235,2]
[356047740,1741846240960,-3851.94,0.00013235,2]
[356047741,1741846240969,-3851.94,0.00013235,2]
[356047742,1741846240979,-3851.94,0.00013235,2]
[356047743,1741846240988,-3851.94,0.00013235,2]
[356047744,1741846240997,-3851.94,0.00013235,2]
[356047745,1741846241007,-3851.94,0.00013235,2]
[356047746,1741846241016,-3851.94,0.00013235,2]
[356047747,1741846241025,-3851.94,0.00013235,2]
[356047748,1741846241035,-3851.94,0.00013235,2]
[356047749,1741846241044,-3852.07652308,0.00013235,2]
[356047750,1741846241053,-1114.0,0.00014771,2]
[356047751,1741846241063,-15168.1917,0.0001499,2]
[356047752,1741846241072,-150.0,0.0001509,2]
[356047753,1741846241081,-150.99,0.0001531,2]
[356047754,1741846241091,-500.73738265,0.00015452,2]
[356047755,1741846241100,-510.26981374,0.00015497,2]
[356047756,1741846241110,-200.0136096,0.00016386,2]
[356047757,1741846241119,-510.26981374,0.00016439,2]
[356047758,1741846241128,-510.26981374,0.0001738,2]
[356047759,1741846241138,-1114.0,0.00017771,2]
[356047760,1741846241148,-510.26981374,0.00018322,2]
[356047761,1741846241157,-510.26981374,0.00019264,2]
[356047762,1741846241166,-200.0,0.00019658,2]
[356047763,1741846241175,-200.0136096,0.00019679,2]
[356047764,1741846241185,-1000.0,0.0001968,2]
[356047765,1741846241195,-250.0,0.00019853,2]
[356047766,1741846241204,-156.71,0.00019983,2]
[356047767,1741846241213,-246.17,0.00020035,2]
[356047768,1741846241223,-10077.73,0.00020071,2]
[356047769,1741846241232,-510.26981374,0.00020205,2]
[356047770,1741846241242,-23900.0,0.00020258,2]
[356047771,1741846241251,-320.13,0.00020263,30]
[356047772,1741846241260,-156.71,0.00020316,2]
[356047773,1741846241269,-156.71,0.00020649,2]
[356047774,1741846241279,-166.69,0.00020675,2]
[356047775,1741846241288,-435.123,0.00020771,2]
[356047776,1741846241298,-164.88,0.00020828,2]
[356047777,1741846241307,-150.0,0.00020862,2]
[356047778,1741846241316,-156.71,0.00020982,2]
[356047779,1741846241325,-510.26981374,0.00021147,2]
[356047780,1741846241334,-2751.0,0.0002176,2]
[356047781,1741846241343,-510.26981374,0.00022089,2]
[356047782,1741846241353,-1000.0,0.0002214,2]
[356047783,1741846241361,-246.17,0.00022539,2]
[356047784,1741846241381,-200.0,0.0002267,2]
[356047785,1741846241392,-200.0136096,0.00022971,3]
[356047786,1741846241401,-208.05417587,0.00023,2]
[356047787,1741846241411,-510.26981374,0.0002303,2]
[356047788,1741846241420,-3269.215,0.00023626,4]
[356047789,1741846241430,-169.001,0.00023626,4]
[356047790,1741846241440,-357.77,0.00023836,2]
[356047791,1741846241450,-510.26981374,0.00023972,2]
[356047792,1741846241459,-159.4531613,0.00024219,2]
[356047793,1741846241469,-164.88,0.00024265,2]
[356047794,1741846241479,-1000.0,0.000246,2]
[356047795,1741846241488,-1000.0,0.00024658,2]
[356047796,1741846241498,-320.13,0.00024741,30]
[356047797,1741846241508,-510.26981374,0.00024913,2]
[356047798,1741846241517,-642.02924489,0.00024976,7]
[356047799,1741846241527,-246.17,0.00025044,120]
[356047800,1741846241537,-510.26981374,0.00025855,2]
[356047801,1741846241546,-200.0136096,0.00026264,4]
[356047802,1741846241556,-510.26981374,0.00026797,2]
[356047803,1741846241566,-1576.31883987,0.00026813,2]
[356047804,1741846241576,-345.86,0.00026849,2]
[356047805,1741846241586,-1000.0,0.0002706,2]
[356047806,1741846241596,-900.0,0.00027397,2]
[356047807,1741846241605,-900.0,0.00027397,2]
[356047808,1741846241614,-900.0,0.00027397,2]
[356047809,1741846241624,-900.0,0.00027397,2]
[356047810,1741846241634,-900.0,0.00027397,2]
[356047811,1741846241643,-900.0,0.00027397,2]
[356047812,1741846241652,-900.0,0.00027397,2]
[356047813,1741846241662,-900.0,0.00027397,2]
[356047814,1741846241671,-900.0,0.00027397,2]
[356047815,1741846241682,-900.0,0.00027397,2]
[356047816,1741846241692,-246.17,0.00027548,120]
[356047817,1741846241702,-510.26981374,0.00027738,2]
[356047818,1741846241712,-3000.0,0.000279,2]
[356047819,1741846241722,-28999.4642044,0.00027989,3]
[356047820,1741846241732,-2810.55511128,0.00028,2]
[356047821,1741846241742,-750.0491763,0.00028194,4]
[356047822,1741846241753,-300.09,0.00028274,2]
[356047823,1741846241762,-2000.0,0.00028303,4]
[356047824,1741846241772,-200.0,0.00028582,2]
[356047825,1741846241782,-794.79,0.000286,31]
[356047826,1741846241793,-794.79,0.000286,31]
[356047827,1741846241805,-794.79,0.000286,31]
[356047828,1741846241814,-794.79,0.000286,31]
[356047829,1741846241824,-794.79,0.000286,31]
[356047830,1741846241835,-794.79,0.000286,31]
[356047831,1741846241845,-794.79,0.000286,31]
[356047832,1741846241854,-794.79,0.000286,31]
[356047833,1741846241864,-794.79,0.000286,31]
[356047834,1741846241876,-794.79,0.000286,31]
[356047835,1741846241885,-794.79,0.000286,31]
[356047836,1741846241895,-794.79,0.000286,31]
[356047837,1741846241904,-794.79,0.000286,31]
[356047838,1741846241914,-794.79,0.000286,31]
[356047839,1741846241924,-794.79,0.000286,31]
[356047840,1741846241934,-794.79,0.000286,31]
[356047841,1741846241944,-2833.17568688,0.00028616,2]
[356047842,1741846241954,-5000.0,0.0002868,2]
[356047843,1741846241964,-510.26981374,0.0002868,2]
[356047844,1741846241974,-51009.05149557,0.0002868,3]
[356047857,1741846242983,-451.22072221,0.0002868,3]
[356047858,1741846243140,-569.04132258,0.0002868,3]
[356048113,1741846246005,-6165.29104752,0.0002868,3]
[356048121,1741846246072,-831.92,0.0002868,3]
[356048133,1741846246185,-2170.12470527,0.0002868,3]
[356048140,1741846246247,-530.36156567,0.0002868,3]
[356048670,1741846257443,-150.0,0.00010789,2]
[356048671,1741846271832,-150.0,0.00010789,2]
[356048698,1741846869847,-189.562235,0.00010789,2]
[356048769,1741847406888,-150.0,9.5e-05,3]
[356048788,1741847432200,-250.0,9.5e-05,3]
[356048789,1741847432209,-150.0,9.55e-05,2]
[356048790,1741847432221,-900.0,9.6e-05,3]
[356048791,1741847432230,-1400.0,9.7e-05,3]
[356048792,1741847432239,-1900.0,9.8e-05,3]
[356048793,1741847432248,-2400.0,9.9e-05,3]
[356048794,1741847432258,-366.9226,9.9e-05,2]
[356048795,1741847432268,-168.60677307,9.973e-05,2]
[356048796,1741847432278,-300.0,9.997e-05,2]
[356048797,1741847432287,-8951.49569264,9.998e-05,2]
[356048798,1741847432297,-150.0,9.998e-05,2]
[356048799,1741847432306,-204.70658583,9.999e-05,2]
[356048800,1741847432315,-500.0,9.999e-05,2]
[356048801,1741847432327,-367.23206717,9.999e-05,2]
[356048802,1741847432337,-500.0,9.999e-05,2]
[356048803,1741847432346,-500.0,9.999e-05,2]
[356048804,1741847432355,-500.0,9.999e-05,2]
[356048805,1741847432364,-500.0,9.999e-05,2]
[356048806,1741847432374,-500.0,9.999e-05,2]
[356048807,1741847432384,-500.0,9.999e-05,2]
[356048808,1741847432393,-500.0,9.999e-05,2]
[356048809,1741847432402,-183.09040078,9.999e-05,2]
[356048810,1741847432412,-500.0,9.999e-05,2]
[356048811,1741847432421,-500.0,9.999e-05,2]
[356048812,1741847432430,-650.0,9.999e-05,2]
[356048813,1741847432439,-292.42399235,0.0001,2]
[356048814,1741847432449,-400450.03250962,0.0001,2]
[356048815,1741847432458,-153.98292979,0.0001,2]
[356048816,1741847432467,-56390.23043032,0.0001,2]
[356048817,1741847432479,-1027.82103063,0.0001,2]
[356048818,1741847432498,-804.79,0.0001,2]
[356048819,1741847432613,-815.23144217,0.0001,2]
[356048831,1741847440338,-426.88928197,0.0001,2]
[356048832,1741847440353,-292454.73756579,0.0001,2]
[356048833,1741847440574,-1435.7055609,0.0001,2]
[356048834,1741847440586,-6718.56,0.0001,2]
[356048846,1741847443176,-40274.01529359,0.0001,2]
[356048957,1741847444650,-279.09938607,0.0001,2]
[356048959,1741847444665,-4499.61325368,0.0001,2]
[356049090,1741847446160,-285.80404213,0.0001,2]
[356049099,1741847446233,-831.0,0.0001,2]
[356049208,1741848535110,159.95,7.21e-05,2]
[356049221,1741848598754,-345.92779086,9.012e-05,2]
[356049225,1741848632539,-654.07220914,9.012e-05,2]
[356049226,1741848632551,-157.79,9.018e-05,2]
[356049227,1741848632561,-169.782235,9.7e-05,2]
[356049228,1741848632570,-5368.0,9.863e-05,2]
[356049229,1741848632579,-1172.7503,9.899e-05,2]
[356049230,1741848632588,-1250.0,9.899e-05,2]
[356049231,1741848632598,-5509.2963,9.899e-05,2]
[356049232,1741848632607,-150.0,9.899e-05,2]
[356049233,1741848632616,-3659.9156,9.9e-05,2]
[356049234,1741848632625,-3002.4425,9.9e-05,2]
[356049235,1741848632635,-470.9063,9.9e-05,2]
[356049236,1741848632645,-1000.0,9.9e-05,2]
[356049237,1741848632655,-48334.1657,9.9e-05,2]
[356049238,1741848632665,-12719.846,9.9e-05,2]
[356049239,1741848632675,-2500.0,9.9e-05,2]
[356049240,1741848632683,-10960.8988,9.9e-05,2]
[356049241,1741848632693,-15168.1917,9.9e-05,2]
[356049242,1741848632702,-512.2277,9.9e-05,2]
[356049243,1741848632711,-1250.0,9.9e-05,2]
[356049244,1741848632721,-500.0,9.973e-05,2]
[356049245,1741848632730,-504.37475405,9.973e-05,2]
[356049246,1741848632739,-456.51786849,9.973e-05,2]
[356049247,1741848632748,-504.63693613,9.973e-05,2]
[356049248,1741848632757,-160.31836101,9.973e-05,2]
[356049249,1741848632766,-185.0,9.99e-05,2]
[356049264,1741848632957,-185.0,9.99e-05,2]
[356049269,1741848633044,-183.0,9.99e-05,2]
[356049271,1741848633054,-3527.668,9.998e-05,2]
[356049273,1741848633064,-169.001,9.998e-05,2]
[356049275,1741848633073,-500.0,9.999e-05,2]
[356049276,1741848633083,-2899.2,9.999e-05,2]
[356049277,1741848633093,-2899.2,9.999e-05,2]
[356049278,1741848633102,-2899.2,9.999e-05,2]
[356049279,1741848633112,-2899.2,9.999e-05,2]
[356049280,1741848633122,-2899.2,9.999e-05,2]
[356049281,1741848633131,-2899.2,9.999e-05,2]
[356049282,1741848633141,-2899.2,9.999e-05,2]
[356049283,1741848633150,-2899.2,9.999e-05,2]
[356049284,1741848633160,-2899.2,9.999e-05,2]
[356049285,1741848633170,-2899.2,9.999e-05,2]
[356049286,1741848633181,-2899.2,9.999e-05,2]
[356049287,1741848633192,-2899.2,9.999e-05,2]
[356049288,1741848633202,-2899.2,9.999e-05,2]
[356049289,1741848633212,-2899.2,9.999e-05,2]
[356049290,1741848633222,-2899.2,9.999e-05,2]
[356049291,1741848633232,-2899.2,9.999e-05,2]
[356049292,1741848633242,-2899.2,9.999e-05,2]
[356049293,1741848633251,-2899.2,9.999e-05,2]
[356049294,1741848633261,-2899.2,9.999e-05,2]
[356049295,1741848633270,-2899.2,9.999e-05,2]
[356049296,1741848633280,-2899.2,9.999e-05,2]
[356049297,1741848633290,-2899.2,9.999e-05,2]
[356049298,1741848633300,-2899.2,9.999e-05,2]
[356049299,1741848633310,-2899.2,9.999e-05,2]
[356049300,1741848633319,-510.26981374,9.999e-05,2]
[356049301,1741848633330,-510.26981374,9.999e-05,2]
[356049302,1741848633339,-510.26981374,0.0001,2]
[356049303,1741848633349,-510.26981374,0.0001,2]
[356049304,1741848633359,-510.26981374,0.0001,2]
[356049305,1741848633368,-510.26981374,0.0001,2]
[356049306,1741848633378,-356.46207636,0.0001,2]
[356049307,1741848633387,-141859.49792529,0.0001,2]
[356049308,1741848633828,-2889.58692056,0.0001,2]
[356049313,1741848638289,-6107.54563059,0.0001,2]
[356049314,1741848638347,-886.16936274,0.0001,2]
[356049315,1741848638486,-1704.75408117,0.0001,2]
[356049319,1741848640440,-5509.84922343,0.0001,2]
[356049320,1741848640512,-663.358059,0.0001,2]
[356049321,1741848640524,-298.78169894,0.0001,2]
[356049322,1741848640536,-868.60597406,0.0001,2]
[356049323,1741848640548,-702.47844533,0.0001,2]
[356049324,1741848640564,-3434.81665123,0.0001,2]
[356049325,1741848640576,-2256.50655973,0.0001,2]
[356049326,1741848640616,-642.18999698,0.0001,2]
[356049327,1741848640699,-3249.95340702,0.0001,2]
[356049328,1741848640711,-1399.79399091,0.0001,2]
[356049329,1741848640724,-3594.43905136,0.0001,2]
[356049330,1741848640735,-2004.69357214,0.0001,2]
[356049331,1741848640747,-731.521973,0.0001,2]
[356049332,1741848640758,-969.93441918,0.0001,2]
[356049333,1741848640798,-9969.70528472,0.0001,2]
[356049334,1741848640809,-1302.41101861,0.0001,2]
[356049335,1741848640820,-455.41274895,0.0001,2]
[356049336,1741848640832,-56495.98113313,0.0001,2]
[356049337,1741848640841,-510.26981374,0.0001,2]
[356049338,1741848640851,-510.26981374,0.0001,2]
[356049339,1741848640860,-510.26981374,0.0001,2]
[356049340,1741848640869,-510.26981374,0.0001,2]
[356049341,1741848640879,-510.26981374,0.0001,2]
[356049342,1741848640888,-233407.40736396,0.0001,2]
[356049343,1741848640900,-1431.37412263,0.0001,2]
[356049355,1741848644960,-562.94029799,0.0001,2]
[356049356,1741848645001,-447.27153168,0.0001,2]
[356049357,1741848645012,-1635.41090626,0.0001,2]
[356049358,1741848645052,-1086.48280957,0.0001,2]
[356049359,1741848645064,-4712.82239926,0.0001,2]
[356049360,1741848645075,-284.74638608,0.0001,2]
[356049361,1741848645087,-2305.68935329,0.0001,2]
[356049362,1741848645127,-835.04991627,0.0001,2]
[356049363,1741848645139,-760.75267459,0.0001,2]
[356049364,1741848645150,-512.6900035,0.0001,2]
[356049365,1741848645162,-37990.36991826,0.0001,2]
[356049366,1741848645210,-282.22400001,0.0001,2]
[356049367,1741848645222,-386.4901369,0.0001,2]
[356049368,1741848645234,-392.53922624,0.0001,2]
[356049369,1741848645246,-545.755,0.0001,2]
[356049370,1741848645258,-2065.04412222,0.0001,2]
[356049373,1741848646846,-582.2827,9.899e-05,2]
[356049374,1741848646855,-260.45533199,0.0001,2]
[356049375,1741848646866,-432.19494406,0.0001,2]
[356049376,1741848646895,-668.30843146,0.0001,2]
[356049377,1741848646906,-343.53915486,0.0001,2]
[356049378,1741848646931,-658.63300375,0.0001,2]
[356049379,1741848646942,-572595.67633412,0.0001,2]
[356049380,1741848646954,-398.41875831,0.0001,2]
[356049381,1741848646965,-644836.56071676,0.0001,2]
[356049382,1741848907060,1508.0,0.00020011,120]
[356049400,1741849831765,-599.29702508,9.9e-05,2]
[356049401,1741849831776,-1300.0,9.9e-05,2]
[356049402,1741849831788,-504.75,9.9e-05,2]
[356049403,1741849831830,-1348.10131452,9.9e-05,2]
[356049404,1741849831842,-366.77,9.9e-05,2]
[356049405,1741849831949,-484.54471875,9.9e-05,2]
[356049421,1741849837556,-437.70943335,9.9e-05,2]
[356049422,1741849837625,-2631.65997,9.9e-05,2]
[356049423,1741849837636,-2400.0,9.9e-05,2]
[356049424,1741849837944,-337.94339215,9.9e-05,2]
[356049425,1741849837956,-376.0213201,9.9e-05,2]
[356049427,1741849839943,-10927.9053696,9.9e-05,2]
[356049428,1741849840006,-817.58160012,9.9e-05,2]
[356049429,1741849840017,-3704.43196104,9.9e-05,2]
[356049430,1741849840029,-1796.45256036,9.9e-05,2]
[356049431,1741849840041,-1903.78392866,9.9e-05,2]
[356049432,1741849840053,-1062.67197729,9.9e-05,2]
[356049433,1741849840064,-392.43285713,9.9e-05,2]
[356049434,1741849840157,-2303.34747185,9.9e-05,2]
[356049435,1741849840166,-150.0,9.9e-05,2]
[356049436,1741849840176,-405.1928,9.9e-05,2]
[356049437,1741849840185,-500.73738265,9.973e-05,2]
[356049438,1741849840194,-500.0,9.999e-05,2]
[356049439,1741849840204,-3109.81,9.999e-05,2]
[356049440,1741849840213,-1449.6,9.999e-05,2]
[356049441,1741849840222,-1449.6,9.999e-05,2]
[356049442,1741849840231,-1449.6,9.999e-05,2]
[356049443,1741849840240,-1449.6,9.999e-05,2]
[356049444,1741849840249,-1449.6,9.999e-05,2]
[356049445,1741849840258,-1449.6,9.999e-05,2]
[356049446,1741849840267,-1449.6,9.999e-05,2]
[356049447,1741849840276,-1449.6,9.999e-05,2]
[356049448,1741849840285,-1449.6,9.999e-05,2]
[356049449,1741849840295,-1449.6,9.999e-05,2]
[356049450,1741849840304,-1449.6,9.999e-05,2]
[356049451,1741849840313,-1449.6,9.999e-05,2]
[356049452,1741849840323,-1449.6,9.999e-05,2]
[356049453,1741849840334,-1449.6,9.999e-05,2]
[356049454,1741849840344,-1449.6,9.999e-05,2]
[356049455,1741849840354,-1449.6,9.999e-05,2]
[356049456,1741849840363,-1449.6,9.999e-05,2]
[356049457,1741849840372,-1449.6,9.999e-05,2]
[356049458,1741849840384,-1449.6,9.999e-05,2]
[356049459,1741849840395,-1449.6,9.999e-05,2]
[356049460,1741849840408,-1449.6,9.999e-05,2]
[356049461,1741849840417,-1449.6,9.999e-05,2]
[356049462,1741849840429,-1449.6,9.999e-05,2]
[356049463,1741849840440,-1449.78468239,9.999e-05,2]
[356049464,1741849840450,-178.23103818,0.0001,2]
[356049465,1741849840459,-162203.92066843,0.0001,2]
[356049466,1741849840469,-88312.91352229,0.0001,2]
[356049467,1741849842069,-300.0,0.0001,2]
[356049482,1741849842538,-439.6789258,0.0001,2]
[356049486,1741849842577,-344.94220916,0.0001,2]
[356049501,1741849843600,-11566.54387906,0.0001,2]
[356049502,1741849843654,-333904.90399296,0.0001,2]
[356049503,1741849845511,-585.70187622,0.0001,2]
[356049504,1741849845821,-7321.95849467,0.0001,2]
[356049517,1741850709469,3000.0,0.0001251,20]
[356049518,1741850709497,1107.45,0.0001251,20]
[356049549,1741851032504,-4086.203923,9.452e-05,2]
[356049550,1741851032514,-200.0,9.5e-05,3]
[356049551,1741851032523,-500.0,9.6e-05,3]
[356049552,1741851032532,-800.0,9.7e-05,3]
[356049553,1741851032542,-5905.73344605,9.7e-05,2]
[356049557,1741851037777,-795.3799985,9.7e-05,2]
[356049563,1741851039819,-257.08831137,9.7e-05,2]
[356049564,1741851040007,-1306.28884408,9.7e-05,2]
[356049565,1741851040016,-150.0,9.763e-05,2]
[356049566,1741851040026,-150.0,9.785e-05,2]
[356049567,1741851040036,-1576.31883987,9.8e-05,2]
[356049568,1741851040045,-1100.0,9.8e-05,3]
[356049569,1741851040055,-150.0,9.899e-05,2]
[356049570,1741851040064,-4351.71922107,9.9e-05,2]
[356049571,1741851040078,-10209.11017893,9.9e-05,2]
[356049572,1741851040087,-957.6183,9.9e-05,2]
[356049573,1741851040097,-11505.887,9.9e-05,2]
[356049574,1741851040107,-181.044,9.9e-05,2]
[356049575,1741851040116,-2965.039,9.9e-05,2]
[356049576,1741851040131,-1400.0,9.9e-05,3]
[356049577,1741851040140,-150.22747972,9.973e-05,2]
[356049578,1741851040150,-185.0,9.99e-05,2]
[356049579,1741851040159,-185.0,9.99e-05,2]
[356049580,1741851040168,-185.0,9.99e-05,2]
[356049581,1741851040178,-500.0,9.999e-05,2]
[356049582,1741851040187,-2980.24,9.999e-05,2]
[356049583,1741851040196,-686.72145751,0.0001,2]
[356049584,1741851040205,-125389.49621169,0.0001,2]
[356049585,1741851040216,-250.067,0.0001,2]
[356049586,1741851040227,-129877.86632878,0.0001,2]
[356049587,1741851040236,-120817.19890012,0.0001,2]
[356049588,1741851040311,-0.003716,0.0001,2]
[356049596,1741851043045,-121841.51758856,0.0001,2]
[356049597,1741851044337,-469.69130204,0.0001,2]
[356049598,1741851044350,-3480.5219082,0.0001,2]
[356049599,1741851044632,-150.0,0.0001,2]
[356049602,1741851046075,-252235.56711291,0.0001,2]
[356049603,1741851050154,-150.0,0.0001,2]
[356049604,1741851062843,-189.562235,9.999e-05,2]
[356049605,1741851118452,895.63,8.547e-05,2]
[356049606,1741851611464,-156.39,9.302e-05,2]
[356049731,1741851782316,15487.51821314,0.0002,120]
[356050319,1741852232120,-682.11,9.09e-05,2]
[356050320,1741852232131,-150.0,9.119e-05,2]
[356050321,1741852232140,-1000.0,9.147e-05,2]
[356050322,1741852232150,-250.0,9.192e-05,2]
[356050323,1741852232160,-490.7794,9.202e-05,2]
[356050324,1741852232169,-200.0,9.239e-05,2]
[356050325,1741852232179,-2885.12011555,9.302e-05,2]
[356050326,1741852232291,-7036.21988445,9.302e-05,2]
[356050327,1741852232301,-150.0,9.425e-05,2]
[356050328,1741852232310,-176.41,9.434e-05,2]
[356050329,1741852232321,-156.01,9.445e-05,2]
[356050330,1741852232331,-4268.3,9.453e-05,2]
[356050331,1741852232341,-23900.0,9.467e-05,2]
[356050332,1741852232350,-200.0,9.5e-05,3]
[356050333,1741852232359,-500.0,9.6e-05,3]
[356050334,1741852232368,-9420.42,9.605e-05,2]
[356050335,1741852232378,-700.0,9.7e-05,3]
[356050336,1741852232387,-1000.0,9.8e-05,3]
[356050337,1741852232397,-150.0,9.899e-05,2]
[356050338,1741852232407,-489.5622,9.9e-05,2]
[356050339,1741852232416,-2861.07791555,9.9e-05,2]
[356050340,1741852232428,-1359.45019934,9.9e-05,2]
[356050341,1741852232438,-1550.35098511,9.9e-05,2]
[356050342,1741852232448,-99.64901489,9.9e-05,2]
[356050344,1741852232848,338.88,8.885e-05,2]
[356050347,1741852238022,-56.74098511,9.9e-05,2]
[356050348,1741852238032,-620.50901499,9.9e-05,3]
[356050527,1741852239942,-679.49098501,9.9e-05,3]
[356050529,1741852239951,-344.68,9.978e-05,2]
[356050531,1741852239960,-1274.92,9.978e-05,2]
[356050533,1741852239971,-500.0,9.999e-05,2]
[356050535,1741852239981,-500.0,9.999e-05,2]
[356050537,1741852239990,-2856.06,9.999e-05,2]
[356050539,1741852239999,-150.0,0.0001,2]
[356050541,1741852240008,-150.0,0.0001,2]
[356050543,1741852240018,-1585.0,0.0001,2]
[356050545,1741852240027,-343.36072875,0.0001,2]
[356050547,1741852240037,-233358.55951536,0.0001,2]
[356050549,1741852240046,-8952.99399978,0.0001,2]